fUST/lending_fUST_20250404
["ID","MTS","AMOUNT","RATE_DAILY","PERIOD"]
[357114539,1743750654573,-1806.21,0.00018497,2]
[357114540,1743750654585,-500.0,0.00018497,2]
[357114541,1743750654600,-623.93,0.00018497,2]
[357114542,1743750654612,-969.71,0.00018497,2]
[357114543,1743750654746,-717.97,0.00018497,2]
[357114544,1743750654769,-2562.26,0.00018497,2]
[357114545,1743750654780,-500.0,0.00018497,2]
[357114546,1743750654789,-536.42,0.00018497,2]
[357114547,1743750654798,-1445.92,0.00018497,2]
[357114548,1743750654808,-500.0,0.00018498,2]
[357114549,1743750654818,-500.0,0.00018498,2]
[357114550,1743750654828,-500.0,0.00018498,2]
[357114551,1743750654838,-500.0,0.00018498,2]
[357114552,1743750654847,-500.0,0.00018498,2]
[357114553,1743750654857,-500.0,0.00018498,2]
[357114554,1743750654867,-500.0,0.00018498,2]
[357114555,1743750654877,-500.0,0.00018498,2]
[357114556,1743750654886,-493.09308181,0.00018498,2]
[357114557,1743750654896,-267.20313214,0.00018498,2]
[357114558,1743750654906,-300.34052493,0.00018498,2]
[357114559,1743750654915,-500.0,0.00018498,2]
[357114560,1743750654925,-500.0,0.00018498,2]
[357114561,1743750654935,-500.0,0.00018498,2]
[357114562,1743750654944,-500.0,0.00018498,2]
[357114563,1743750654954,-500.0,0.00018498,2]
[357114564,1743750654964,-500.0,0.00018498,2]
[357114565,1743750654974,-500.0,0.00018498,2]
[357114566,1743750654983,-500.0,0.00018498,2]
[357114567,1743750654992,-424.93517982,0.00018498,2]
[357114568,1743750655002,-500.0,0.00018498,2]
[357114569,1743750655011,-165.31151713,0.00018498,2]
[357114570,1743750655020,-500.0,0.00018498,2]
[357114571,1743750655029,-500.0,0.00018498,2]
[357114572,1743750655038,-500.0,0.00018498,2]
[357114573,1743750655047,-612.07,0.00018498,2]
[357114574,1743750655057,-500.0,0.00018498,2]
[357114575,1743750655066,-500.0,0.00018498,2]
[357114576,1743750655075,-500.0,0.00018498,2]
[357114577,1743750655084,-500.0,0.00018498,2]
[357114578,1743750655093,-500.0,0.00018498,2]
[357114579,1743750655103,-500.0,0.00018498,2]
[357114580,1743750655112,-500.0,0.00018498,2]
[357114581,1743750655121,-500.0,0.00018498,2]
[357114582,1743750655130,-500.0,0.00018498,2]
[357114583,1743750655141,-500.0,0.00018498,2]
[357114584,1743750655150,-863.7,0.00018498,2]
[357114585,1743750655159,-500.0,0.00018498,2]
[357114586,1743750655169,-500.0,0.00018498,2]
[357114587,1743750655179,-500.0,0.00018498,2]
[357114588,1743750655188,-500.0,0.00018498,2]
[357114589,1743750655198,-500.0,0.00018498,2]
[357114590,1743750655208,-500.0,0.00018498,2]
[357114591,1743750655218,-500.0,0.00018498,2]
[357114592,1743750655228,-927.2,0.00018498,2]
[357114593,1743750655238,-500.0,0.00018498,2]
[357114594,1743750655247,-500.0,0.00018498,2]
[357114595,1743750655256,-500.0,0.00018498,2]
[357114596,1743750655266,-500.0,0.00018498,2]
[357114597,1743750655275,-500.0,0.00018498,2]
[357114598,1743750655284,-500.0,0.00018498,2]
[357114599,1743750655294,-500.0,0.00018498,2]
[357114600,1743750655304,-500.0,0.00018498,2]
[357114601,1743750655313,-500.0,0.00018498,2]
[357114602,1743750655323,-500.0,0.00018498,2]
[357114603,1743750655333,-162.24,0.00018498,2]
[357114604,1743750655342,-500.0,0.00018499,2]
[357114605,1743750655353,-500.0,0.00018499,2]
[357114606,1743750655362,-500.0,0.000185,2]
[357114607,1743750655372,-4356.99575162,0.00018693,2]
[357114608,1743750655382,-222.15020061,0.00018771,3]
[357114609,1743750655392,-304.00331967,0.00018771,3]
[357114610,1743750655402,-984.75,0.00018771,2]
[357114611,1743750655412,-500.0,0.00018771,2]
[357114612,1743750655426,-500.0,0.00018771,2]
[357114613,1743750655436,-500.0,0.00018771,2]
[357114614,1743750655446,-500.0,0.00018771,2]
[357114615,1743750655455,-500.0,0.00018771,2]
[357114616,1743750655466,-778.12,0.00018771,2]
[357114617,1743750655476,-855.56,0.00018771,2]
[357114618,1743750655486,-500.0,0.00018771,2]
[357114619,1743750655496,-1948.22,0.00018771,2]
[357114620,1743750655506,-500.0,0.00018771,2]
[357114621,1743750655515,-500.0,0.00018771,2]
[357114622,1743750655525,-500.0,0.00018771,2]
[357114623,1743750655535,-500.0,0.00018771,2]
[357114624,1743750655545,-500.0,0.00018771,2]
[357114625,1743750655554,-496.76,0.00018771,2]
[357114626,1743750655563,-500.0,0.00018771,2]
[357114627,1743750655573,-500.0,0.00018771,2]
[357114628,1743750655583,-4442.34,0.00018771,2]
[357114629,1743750655593,-500.0,0.00018771,2]
[357114630,1743750655602,-500.0,0.00018771,2]
[357114631,1743750655612,-558.55817884,0.00018771,2]
[357114632,1743750655622,-500.0,0.00018771,2]
[357114633,1743750655632,-500.0,0.00018771,2]
[357114634,1743750655642,-500.0,0.00018771,2]
[357114635,1743750655652,-500.0,0.00018771,2]
[357114636,1743750655662,-1279.03,0.00018771,2]
[357114637,1743750655672,-500.0,0.00018771,2]
[357114638,1743750655681,-500.0,0.00018771,2]
[357114639,1743750655690,-1806.21,0.00018771,2]
[357114640,1743750655700,-969.71,0.00018771,2]
[357114641,1743750655712,-717.97,0.00018771,2]
[357114642,1743750655721,-2562.26,0.00018771,2]
[357114643,1743750655731,-500.0,0.00018771,2]
[357114644,1743750655740,-536.42,0.00018771,2]
[357114645,1743750655749,-1445.92,0.00018771,2]
[357114646,1743750655759,-500.0,0.00018772,2]
[357114647,1743750655768,-500.0,0.00018772,2]
[357114648,1743750655778,-500.0,0.00018772,2]
[357114649,1743750655788,-500.0,0.00018772,2]
[357114650,1743750655797,-500.0,0.00018772,2]
[357114651,1743750655806,-500.0,0.00018772,2]
[357114652,1743750655815,-599.13,0.00018772,2]
[357114653,1743750655825,-630.84,0.00018772,2]
[357114654,1743750655834,-180.74,0.00018772,2]
[357114655,1743750655843,-151.0,0.00018772,2]
[357114656,1743750655852,-235.34,0.00018772,2]
[357114657,1743750655861,-500.0,0.00018772,2]
[357114658,1743750655871,-500.0,0.00018772,2]
[357114659,1743750655880,-232.4,0.00018772,2]
[357114660,1743750655890,-500.0,0.00018772,2]
[357114661,1743750655900,-863.7,0.00018772,2]
[357114662,1743750655909,-500.0,0.00018772,2]
[357114663,1743750655919,-500.0,0.00018772,2]
[357114664,1743750655929,-239.54,0.00018772,2]
[357114665,1743750655939,-500.0,0.00018772,2]
[357114666,1743750655949,-927.2,0.00018772,2]
[357114667,1743750655961,-500.0,0.00018772,2]
[357114668,1743750655970,-500.0,0.00018772,2]
[357114669,1743750655979,-500.0,0.00018772,2]
[357114670,1743750655989,-500.0,0.00018772,2]
[357114671,1743750655999,-500.0,0.00018772,2]
[357114672,1743750656008,-500.0,0.00018772,2]
[357114673,1743750656018,-500.0,0.00018772,2]
[357114674,1743750656028,-598.956469,0.00018772,2]
[357114675,1743750656038,-598.956469,0.00018772,2]
[357114676,1743750656048,-500.0,0.00018773,2]
[357114677,1743750656057,-276.57,0.00018774,2]
[357114678,1743750656067,-1221.25953506,0.00018874,2]
[357114679,1743750656077,-984.75,0.00019045,2]
[357114680,1743750656087,-500.0,0.00019045,2]
[357114681,1743750656097,-500.0,0.00019045,2]
[357114682,1743750656107,-778.12,0.00019045,2]
[357114683,1743750656117,-855.56,0.00019045,2]
[357114684,1743750656126,-318.78,0.00019045,2]
[357114685,1743750656136,-1948.22,0.00019045,2]
[357114686,1743750656146,-500.0,0.00019045,2]
[357114687,1743750656155,-500.0,0.00019045,2]
[357114688,1743750656165,-500.0,0.00019045,2]
[357114689,1743750656175,-500.0,0.00019045,2]
[357114690,1743750656185,-4442.34,0.00019045,2]
[357114691,1743750656194,-500.0,0.00019045,2]
[357114692,1743750656203,-500.0,0.00019045,2]
[357114693,1743750656213,-500.0,0.00019045,2]
[357114694,1743750656223,-151.0,0.00019045,2]
[357114695,1743750656233,-363.24,0.00019045,2]
[357114696,1743750656242,-500.0,0.00019045,2]
[357114697,1743750656252,-1279.03,0.00019045,2]
[357114698,1743750656262,-500.0,0.00019045,2]
[357114699,1743750656272,-500.0,0.00019045,2]
[357114700,1743750656282,-1806.21,0.00019045,2]
[357114701,1743750656292,-969.71,0.00019045,2]
[357114702,1743750656302,-717.97,0.00019045,2]
[357114703,1743750656312,-2562.26,0.00019045,2]
[357114704,1743750656321,-500.0,0.00019045,2]
[357114705,1743750656332,-536.42,0.00019045,2]
[357114706,1743750656342,-1445.92,0.00019045,2]
[357114707,1743750656352,-500.0,0.00019046,2]
[357114708,1743750656362,-500.0,0.00019046,2]
[357114709,1743750656372,-343.29,0.00019046,2]
[357114710,1743750656383,-500.0,0.00019046,2]
[357114711,1743750656393,-454.38,0.00019046,2]
[357114712,1743750656402,-228.07,0.00019046,2]
[357114713,1743750656417,-217.08,0.00019046,2]
[357114714,1743750656427,-500.0,0.00019046,2]
[357114715,1743750656437,-863.7,0.00019046,2]
[357114716,1743750656446,-376.68,0.00019046,2]
[357114717,1743750656458,-500.0,0.00019046,2]
[357114718,1743750656467,-500.0,0.00019046,2]
[357114719,1743750656477,-927.2,0.00019046,2]
[357114720,1743750656487,-500.0,0.00019046,2]
[357114721,1743750656498,-500.0,0.00019046,2]
[357114722,1743750656507,-500.0,0.00019046,2]
[357114723,1743750656517,-500.0,0.00019046,2]
[357114724,1743750656527,-500.0,0.00019046,2]
[357114725,1743750656537,-500.0,0.00019046,2]
[357114726,1743750656547,-375.07,0.00019046,2]
[357114727,1743750656557,-500.0,0.00019047,2]
[357114728,1743750656567,-984.75,0.00019319,2]
[357114729,1743750656576,-500.0,0.00019319,2]
[357114730,1743750656589,-500.0,0.00019319,2]
[357114731,1743750656599,-778.12,0.00019319,2]
[357114732,1743750656608,-855.56,0.00019319,2]
[357114733,1743750656618,-1948.22,0.00019319,2]
[357114734,1743750656628,-500.0,0.00019319,2]
[357114735,1743750656638,-500.0,0.00019319,2]
[357114736,1743750656648,-500.0,0.00019319,2]
[357114737,1743750656658,-500.0,0.00019319,2]
[357114738,1743750656668,-4442.34,0.00019319,2]
[357114739,1743750656678,-500.0,0.00019319,2]
[357114740,1743750656687,-500.0,0.00019319,2]
[357114741,1743750656697,-500.0,0.00019319,2]
[357114742,1743750656708,-500.0,0.00019319,2]
[357114743,1743750656718,-1279.03,0.00019319,2]
[357114744,1743750656727,-500.0,0.00019319,2]
[357114745,1743750656737,-500.0,0.00019319,2]
[357114746,1743750656748,-1806.21,0.00019319,2]
[357114747,1743750656758,-969.71,0.00019319,2]
[357114748,1743750656768,-717.97,0.00019319,2]
[357114749,1743750656778,-2562.26,0.00019319,2]
[357114750,1743750656787,-500.0,0.00019319,2]
[357114751,1743750656796,-536.42,0.00019319,2]
[357114752,1743750656806,-1445.92,0.00019319,2]
[357114753,1743750656815,-560.72,0.0001932,2]
[357114754,1743750656824,-500.0,0.0001932,2]
[357114755,1743750656834,-500.0,0.0001932,2]
[357114756,1743750656843,-500.0,0.0001932,2]
[357114757,1743750656853,-863.7,0.0001932,2]
[357114758,1743750656863,-500.0,0.0001932,2]
[357114759,1743750656873,-500.0,0.0001932,2]
[357114760,1743750656883,-927.2,0.0001932,2]
[357114761,1743750656893,-500.0,0.0001932,2]
[357114762,1743750656902,-500.0,0.0001932,2]
[357114763,1743750656912,-500.0,0.0001932,2]
[357114764,1743750656921,-500.0,0.0001932,2]
[357114765,1743750656932,-500.0,0.0001932,2]
[357114766,1743750656942,-500.0,0.0001932,2]
[357114767,1743750656952,-183.07,0.00019321,2]
[357114768,1743750656962,-34465.21653739,0.00019329,2]
[357114769,1743750656972,-246.67,0.00019378,2]
[357114770,1743750657073,-255.379,0.00019378,2]
[357114771,1743750657083,-187.6,0.00019378,2]
[357114772,1743750657093,-401.0,0.00019378,2]
[357114773,1743750657102,-2000.0,0.00019378,2]
[357114774,1743750657111,-4356.99575162,0.0001959,2]
[357114775,1743750657121,-984.75,0.00019593,2]
[357114776,1743750657131,-500.0,0.00019593,2]
[357114777,1743750657140,-500.0,0.00019593,2]
[357114778,1743750657149,-778.12,0.00019593,2]
[357114779,1743750657158,-855.56,0.00019593,2]
[357114780,1743750657168,-1948.22,0.00019593,2]
[357114781,1743750657177,-500.0,0.00019593,2]
[357114782,1743750657187,-500.0,0.00019593,2]
[357114783,1743750657196,-500.0,0.00019593,2]
[357114784,1743750657207,-566.91339222,0.00019593,2]
[357114785,1743750657216,-4442.34,0.00019593,2]
[357114786,1743750657225,-500.0,0.00019593,2]
[357114787,1743750657235,-500.0,0.00019593,2]
[357114788,1743750657245,-500.0,0.00019593,2]
[357114789,1743750657254,-500.0,0.00019593,2]
[357114790,1743750657263,-1279.03,0.00019593,2]
[357114791,1743750657272,-500.0,0.00019593,2]
[357114792,1743750657282,-500.0,0.00019593,2]
[357114793,1743750657292,-1806.21,0.00019593,2]
[357114794,1743750657301,-969.71,0.00019593,2]
[357114795,1743750657310,-717.97,0.00019593,2]
[357114796,1743750657320,-2562.26,0.00019593,2]
[357114797,1743750657330,-241.46,0.00019593,2]
[357114798,1743750657340,-536.42,0.00019593,2]
[357114799,1743750657349,-500.0,0.00019594,2]
[357114800,1743750657358,-500.0,0.00019594,2]
[357114801,1743750657368,-500.0,0.00019594,2]
[357114802,1743750657378,-863.7,0.00019594,2]
[357114803,1743750657388,-500.0,0.00019594,2]
[357114804,1743750657397,-500.0,0.00019594,2]
[357114805,1743750657407,-927.2,0.00019594,2]
[357114806,1743750657416,-190.92,0.00019594,2]
[357114807,1743750657427,-500.0,0.00019594,2]
[357114808,1743750657436,-500.0,0.00019594,2]
[357114809,1743750657446,-500.0,0.00019594,2]
[357114810,1743750657457,-500.0,0.00019594,2]
[357114811,1743750657469,-500.0,0.00019594,2]
[357114812,1743750657479,-984.75,0.00019867,2]
[357114813,1743750657489,-500.0,0.00019867,2]
[357114814,1743750657502,-500.0,0.00019867,2]
[357114815,1743750657512,-778.12,0.00019867,2]
[357114816,1743750657522,-855.56,0.00019867,2]
[357114817,1743750657532,-1948.22,0.00019867,2]
[357114818,1743750657542,-500.0,0.00019867,2]
[357114819,1743750657551,-500.0,0.00019867,2]
[357114820,1743750657561,-500.0,0.00019867,2]
[357114821,1743750657570,-4442.34,0.00019867,2]
[357114822,1743750657579,-500.0,0.00019867,2]
[357114823,1743750657588,-500.0,0.00019867,2]
[357114824,1743750657598,-500.0,0.00019867,2]
[357114825,1743750657607,-500.0,0.00019867,2]
[357114826,1743750657617,-1279.03,0.00019867,2]
[357114827,1743750657628,-295.02,0.00019867,2]
[357114828,1743750657638,-500.0,0.00019867,2]
[357114829,1743750657648,-1806.21,0.00019867,2]
[357114830,1743750657658,-969.71,0.00019867,2]
[357114831,1743750657668,-717.97,0.00019867,2]
[357114832,1743750657677,-2562.26,0.00019867,2]
[357114833,1743750657687,-536.42,0.00019867,2]
[357114834,1743750657697,-500.0,0.00019868,2]
[357114835,1743750657706,-500.0,0.00019868,2]
[357114836,1743750657716,-500.0,0.00019868,2]
[357114837,1743750657725,-863.7,0.00019868,2]
[357114838,1743750657736,-597.07,0.00019868,2]
[357114839,1743750657745,-500.0,0.00019868,2]
[357114840,1743750657754,-927.2,0.00019868,2]
[357114841,1743750657763,-500.0,0.00019868,2]
[357114842,1743750657773,-500.0,0.00019868,2]
[357114843,1743750657782,-500.0,0.00019868,2]
[357114844,1743750657791,-500.0,0.00019868,2]
[357114845,1743750657801,-500.0,0.00019868,2]
[357114846,1743750657811,-2000.0,0.0002,4]
[357114847,1743750657821,-984.75,0.00020141,2]
[357114848,1743750657831,-500.0,0.00020141,2]
[357114849,1743750657842,-500.0,0.00020141,2]
[357114850,1743750657852,-778.12,0.00020141,2]
[357114851,1743750657861,-855.56,0.00020141,2]
[357114852,1743750657871,-1948.22,0.00020141,2]
[357114853,1743750657881,-500.0,0.00020141,2]
[357114854,1743750657891,-500.0,0.00020141,2]
[357114855,1743750657901,-500.0,0.00020141,2]
[357114856,1743750657910,-4442.34,0.00020141,2]
[357114857,1743750657919,-500.0,0.00020141,2]
[357114858,1743750657929,-500.0,0.00020141,2]
[357114859,1743750657938,-500.0,0.00020141,2]
[357114860,1743750657948,-500.0,0.00020141,2]
[357114861,1743750657958,-1279.03,0.00020141,2]
[357114862,1743750657968,-500.0,0.00020141,2]
[357114863,1743750657977,-1806.21,0.00020141,2]
[357114864,1743750657986,-969.71,0.00020141,2]
[357114865,1743750657995,-598.956469,0.00020141,2]
[357114866,1743750658005,-598.956469,0.00020141,2]
[357114867,1743750658015,-717.97,0.00020141,2]
[357114868,1743750658024,-2562.26,0.00020141,2]
[357114869,1743750658034,-536.42,0.00020141,2]
[357114870,1743750658043,-500.0,0.00020142,2]
[357114871,1743750658052,-500.0,0.00020142,2]
[357114872,1743750658062,-151.0,0.00020142,2]
[357114873,1743750658072,-500.0,0.00020142,2]
[357114874,1743750658081,-863.7,0.00020142,2]
[357114875,1743750658091,-500.0,0.00020142,2]
[357114876,1743750658100,-927.2,0.00020142,2]
[357114877,1743750658109,-500.0,0.00020142,2]
[357114878,1743750658118,-500.0,0.00020142,2]
[357114879,1743750658127,-500.0,0.00020142,2]
[357114880,1743750658137,-500.0,0.00020142,2]
[357114881,1743750658147,-285.907218,0.00020142,2]
[357114882,1743750658156,-500.0,0.00020142,2]
[357114883,1743750658166,-984.75,0.00020415,2]
[357114884,1743750658175,-500.0,0.00020415,2]
[357114885,1743750658185,-500.0,0.00020415,2]
[357114886,1743750658194,-778.12,0.00020415,2]
[357114887,1743750658203,-855.56,0.00020415,2]
[357114888,1743750658215,-1948.22,0.00020415,2]
[357114889,1743750658224,-604.5,0.00020415,2]
[357114890,1743750658233,-500.0,0.00020415,2]
[357114891,1743750658243,-500.0,0.00020415,2]
[357114892,1743750658252,-4442.34,0.00020415,2]
[357114893,1743750658262,-500.0,0.00020415,2]
[357114894,1743750658271,-500.0,0.00020415,2]
[357114895,1743750658281,-500.0,0.00020415,2]
[357114896,1743750658291,-500.0,0.00020415,2]
[357114897,1743750658300,-1279.03,0.00020415,2]
[357114898,1743750658311,-500.0,0.00020415,2]
[357114899,1743750658320,-1806.21,0.00020415,2]
[357114900,1743750658330,-969.71,0.00020415,2]
[357114901,1743750658339,-717.97,0.00020415,2]
[357114902,1743750658349,-2562.26,0.00020415,2]
[357114903,1743750658358,-536.42,0.00020415,2]
[357114904,1743750658368,-600.17,0.00020416,2]
[357114905,1743750658377,-500.0,0.00020416,2]
[357114906,1743750658387,-500.0,0.00020416,2]
[357114907,1743750658397,-863.7,0.00020416,2]
[357114908,1743750658407,-500.0,0.00020416,2]
[357114909,1743750658421,-927.2,0.00020416,2]
[357114910,1743750658431,-500.0,0.00020416,2]
[357114911,1743750658442,-643.22,0.00020416,2]
[357114912,1743750658452,-500.0,0.00020416,2]
[357114913,1743750658468,-500.0,0.00020416,2]
[357114914,1743750658479,-518.55,0.00020416,2]
[357114915,1743750658489,-4356.99575162,0.00020486,2]
[357114916,1743750658500,-984.75,0.00020689,2]
[357114917,1743750658510,-500.0,0.00020689,2]
[357114918,1743750658520,-500.0,0.00020689,2]
[357114919,1743750658529,-778.12,0.00020689,2]
[357114920,1743750658539,-855.56,0.00020689,2]
[357114921,1743750658551,-1948.22,0.00020689,2]
[357114922,1743750658563,-500.0,0.00020689,2]
[357114923,1743750658575,-500.0,0.00020689,2]
[357114924,1743750658585,-4442.34,0.00020689,2]
[357114925,1743750658595,-500.0,0.00020689,2]
[357114926,1743750658604,-500.0,0.00020689,2]
[357114927,1743750658614,-500.0,0.00020689,2]
[357114928,1743750658624,-500.0,0.00020689,2]
[357114929,1743750658634,-1279.03,0.00020689,2]
[357114930,1743750658644,-500.0,0.00020689,2]
[357114931,1743750658654,-1806.21,0.00020689,2]
[357114932,1743750658665,-969.71,0.00020689,2]
[357114933,1743750658675,-717.97,0.00020689,2]
[357114934,1743750658686,-2562.26,0.00020689,2]
[357114935,1743750658696,-536.42,0.00020689,2]
[357114936,1743750658705,-500.0,0.0002069,2]
[357114937,1743750658722,-500.0,0.0002069,2]
[357114938,1743750658733,-863.7,0.0002069,2]
[357114939,1743750658745,-500.0,0.0002069,2]
[357114940,1743750658755,-927.2,0.0002069,2]
[357114941,1743750658765,-500.0,0.0002069,2]
[357114942,1743750658775,-500.0,0.0002069,2]
[357114943,1743750658785,-500.0,0.0002069,2]
[357114944,1743750658796,-984.75,0.00020963,2]
[357114945,1743750658806,-640.7,0.00020963,2]
[357114946,1743750658816,-500.0,0.00020963,2]
[357114947,1743750658826,-778.12,0.00020963,2]
[357114948,1743750658836,-855.56,0.00020963,2]
[357114949,1743750658848,-1948.22,0.00020963,2]
[357114950,1743750658858,-500.0,0.00020963,2]
[357114951,1743750658869,-500.0,0.00020963,2]
[357114952,1743750658879,-4442.34,0.00020963,2]
[357114953,1743750658889,-500.0,0.00020963,2]
[357114954,1743750658899,-500.0,0.00020963,2]
[357114955,1743750658909,-500.0,0.00020963,2]
[357114956,1743750658918,-300.45,0.00020963,2]
[357114957,1743750658928,-1279.03,0.00020963,2]
[357114958,1743750658938,-500.0,0.00020963,2]
[357114959,1743750658948,-1806.21,0.00020963,2]
[357114960,1743750658963,-969.71,0.00020963,2]
[357114961,1743750658974,-717.97,0.00020963,2]
[357114962,1743750658985,-2562.26,0.00020963,2]
[357114963,1743750658995,-536.42,0.00020963,2]
[357114964,1743750659006,-187.4,0.00020964,2]
[357114965,1743750659017,-500.0,0.00020964,2]
[357114966,1743750659027,-863.7,0.00020964,2]
[357114967,1743750659038,-500.0,0.00020964,2]
[357114968,1743750659049,-927.2,0.00020964,2]
[357114969,1743750659059,-500.0,0.00020964,2]
[357114970,1743750659068,-500.0,0.00020964,2]
[357114971,1743750659078,-500.0,0.00020964,2]
[357114972,1743750659087,-1221.25953506,0.00020994,2]
[357114973,1743750659097,-152.27,0.00021,2]
[357114974,1743750659107,-152.27,0.00021,2]
[357114975,1743750659116,-152.27,0.00021,2]
[357114976,1743750659126,-984.75,0.00021237,2]
[357114977,1743750659136,-500.0,0.00021237,2]
[357114978,1743750659233,-778.12,0.00021237,2]
[357114979,1743750659243,-855.56,0.00021237,2]
[357114980,1743750659254,-1948.22,0.00021237,2]
[357114981,1743750659264,-500.0,0.00021237,2]
[357114982,1743750659273,-500.0,0.00021237,2]
[357114983,1743750659283,-4442.34,0.00021237,2]
[357114984,1743750659293,-500.0,0.00021237,2]
[357114985,1743750659303,-1279.03,0.00021237,2]
[357114986,1743750659313,-500.0,0.00021237,2]
[357114987,1743750659323,-1806.21,0.00021237,2]
[357114988,1743750659333,-969.71,0.00021237,2]
[357114989,1743750659343,-717.97,0.00021237,2]
[357114990,1743750659353,-2562.26,0.00021237,2]
[357114991,1743750659362,-536.42,0.00021237,2]
[357114992,1743750659372,-500.0,0.00021238,2]
[357114993,1743750659381,-863.7,0.00021238,2]
[357114994,1743750659391,-500.0,0.00021238,2]
[357114995,1743750659401,-927.2,0.00021238,2]
[357114996,1743750659410,-2000.0,0.0002125,4]
[357114997,1743750659420,-2806.15,0.000213,2]
[357114998,1743750659432,-500.0,0.00021313,2]
[357114999,1743750659442,-500.0,0.00021313,2]
[357115000,1743750659452,-448.6934769,0.00021327,2]
[357115001,1743750659463,-4356.99575162,0.00021383,3]
[357115002,1743750659473,-174.81169795,0.00021412,2]
[357115003,1743750659484,-17426.07,0.000215,2]
[357115004,1743750659495,-984.75,0.00021511,2]
[357115005,1743750659506,-778.12,0.00021511,2]
[357115006,1743750659516,-855.56,0.00021511,2]
[357115007,1743750659526,-1948.22,0.00021511,2]
[357115008,1743750659535,-500.0,0.00021511,2]
[357115009,1743750659546,-630.61,0.00021511,2]
[357115010,1743750659556,-4442.34,0.00021511,2]
[357115011,1743750659567,-500.0,0.00021511,2]
[357115012,1743750659577,-1279.03,0.00021511,2]
[357115013,1743750659587,-500.0,0.00021511,2]
[357115014,1743750659597,-1806.21,0.00021511,2]
[357115015,1743750659607,-969.71,0.00021511,2]
[357115016,1743750659617,-598.956469,0.00021511,2]
[357115017,1743750659627,-598.956469,0.00021511,2]
[357115018,1743750659636,-717.97,0.00021511,2]
[357115019,1743750659647,-2562.26,0.00021511,2]
[357115020,1743750659657,-536.42,0.00021511,2]
[357115021,1743750659667,-500.0,0.00021512,2]
[357115022,1743750659678,-863.7,0.00021512,2]
[357115023,1743750659688,-500.0,0.00021512,2]
[357115024,1743750659698,-927.2,0.00021512,2]
[357115025,1743750659709,-74638.60219748,0.00021671,2]
[357115026,1743750659718,-151.0,0.00021671,2]
[357115027,1743750659728,-984.75,0.00021785,2]
[357115028,1743750659738,-778.12,0.00021785,2]
[357115029,1743750659748,-855.56,0.00021785,2]
[357115030,1743750659759,-1948.22,0.00021785,2]
[357115031,1743750659768,-500.0,0.00021785,2]
[357115032,1743750659778,-4442.34,0.00021785,2]
[357115033,1743750659788,-500.0,0.00021785,2]
[357115034,1743750659798,-1279.03,0.00021785,2]
[357115035,1743750659808,-500.0,0.00021785,2]
[357115036,1743750659818,-1806.21,0.00021785,2]
[357115037,1743750659828,-969.71,0.00021785,2]
[357115038,1743750659838,-717.97,0.00021785,2]